bitfinex-derivatives/quotes_BTCF0:USTF0_20250114
["timestamp","ask_amount","ask_price","bid_price","bid_amount"]
[1736845782354,0.052194,95829.0,95824.0,0.176997]
[1736845782554,0.052194,95829.0,95824.0,0.1248]
[1736845783157,0.23327029,95828.0,95824.0,0.1248]
[1736845783559,0.23327029,95828.0,95825.0,0.052196]
[1736845784463,0.23527029,95828.0,95825.0,0.052196]
[1736845784967,0.28746529,95828.0,95817.0,0.1224]
[1736845785159,0.28746529,95828.0,95822.0,0.052198]
[1736845786061,0.055195,95828.0,95822.0,0.052198]
[1736845786560,0.052195,95827.0,95822.0,0.052198]
[1736845787962,0.053195,95827.0,95822.0,0.052198]
[1736845788653,0.053195,95827.0,95817.0,0.1224]
[1736845788654,0.054195,95827.0,95823.0,0.052197]
[1736845789562,0.3608,95824.0,95810.0,0.3608]
[1736845789765,0.052202,95815.0,95810.0,0.3608]
[1736845790158,0.1047133,95820.0,95802.0,0.12926562]
[1736845790159,0.052206,95807.0,95802.0,0.12926562]
[1736845790363,0.36140001,95811.0,95802.0,0.12926562]
[1736845790567,0.413004,95811.0,95803.0,0.053208]
[1736845790865,0.052207,95805.0,95802.0,0.12926562]
[1736845791077,0.3608,95811.0,95802.0,0.12926562]
[1736845791078,0.052208,95803.0,95802.0,0.00156562]
[1736845791281,0.1217,95810.0,95794.0,0.18556346]
[1736845791470,0.1228,95802.0,95788.0,0.052216]
[1736845791674,0.052213,95795.0,95789.0,0.052216]
[1736845792074,0.1228,95802.0,95786.0,0.00930729]
[1736845792372,0.05221,95800.0,95793.0,0.052214]
[1736845792577,0.05221,95800.0,95794.0,0.004]
[1736845793184,0.05221,95800.0,95795.0,0.052213]
[1736845794089,0.05321,95800.0,95795.0,0.052213]
[1736845794284,0.052211,95799.0,95795.0,0.052213]
[1736845794883,0.001,95800.0,95795.0,0.052213]
[1736845795086,0.001,95800.0,95794.0,0.009]
[1736845795087,0.001,95800.0,95799.0,0.05221]
[1736845795473,0.413004,95811.0,95805.0,0.052207]
[1736845795879,0.3608,95811.0,95805.0,0.052207]
[1736845796286,0.052207,95806.0,95805.0,0.052207]
[1736845796684,0.41460401,95811.0,95809.0,0.052205]
[1736845796884,0.414004,95811.0,95810.0,0.052204]
[1736845798885,0.413004,95811.0,95810.0,0.053204]
[1736845799497,0.413004,95811.0,95810.0,0.057204]
[1736845799681,0.413004,95811.0,95810.0,0.005]
[1736845800682,0.47350424,95811.0,95810.0,0.005]
[1736845804981,0.55020206,95811.0,95810.0,0.005]
[1736845806182,0.47350424,95811.0,95810.0,0.005]
[1736845807299,0.413004,95811.0,95810.0,0.005]
[1736845807686,0.413004,95811.0,95810.0,0.057204]
[1736845808391,0.00156617,95816.0,95810.0,0.3658]
[1736845808791,0.052202,95814.0,95813.0,0.052202]
[1736845811688,0.052202,95814.0,95813.0,0.055202]
[1736845821900,0.052202,95814.0,95813.0,0.003]
[1736845823302,0.11269448,95814.0,95813.0,0.003]
[1736845824412,0.11269448,95814.0,95813.0,0.055203]
[1736845825503,0.06049248,95814.0,95813.0,0.056203]
[1736845827307,0.06049248,95814.0,95813.0,0.0654713]
[1736845828003,0.052197,95824.0,95813.0,0.0132683]
[1736845828204,0.052197,95824.0,95820.0,0.3608]
[1736845828398,0.36140001,95830.0,95826.0,0.052195]
[1736845828604,0.3608,95830.0,95826.0,0.052195]
[1736845828811,0.3608,95830.0,95827.0,0.001]
[1736845829007,0.25001024,95831.0,95827.0,0.001]
[1736845829307,0.11267684,95829.0,95821.0,0.1176]
[1736845829712,0.11267684,95829.0,95822.0,0.001]
[1736845829914,0.06048284,95829.0,95822.0,0.001]
[1736845830110,0.06048284,95829.0,95828.0,0.412995]
[1736845830703,0.001,95829.0,95828.0,0.412995]
[1736845832404,0.002,95829.0,95828.0,0.3608]
[1736845832606,0.005,95829.0,95828.0,0.412995]
[1736845833316,0.005,95829.0,95828.0,0.42255839]
[1736845836320,0.005,95829.0,95828.0,0.42355839]
[1736845836619,0.2231133,95850.0,95840.0,0.052188]
[1736845837024,0.05374962,95847.0,95840.0,0.052188]
[1736845837319,0.05374962,95847.0,95841.0,0.052187]
[1736845837518,0.05374962,95847.0,95829.0,0.1203]
[1736845837715,0.05374962,95847.0,95842.0,0.052187]
[1736845837924,0.05374962,95847.0,95844.0,0.052186]
[1736845838611,0.13714356,95846.0,95844.0,0.052186]
[1736845839520,0.13714356,95846.0,95845.0,0.052185]
[1736845839824,0.001,95846.0,95845.0,0.052185]
[1736845840315,0.004,95846.0,95845.0,0.052185]
[1736845840516,0.004,95846.0,95845.0,0.412985]
[1736845840823,0.14114343,95846.0,95845.0,0.412985]
[1736845841827,0.004,95846.0,95845.0,0.412985]
[1736845842121,0.1568903,95860.0,95854.0,0.05218]
[1736845842321,0.1047133,95860.0,95845.0,0.37128826]
[1736845842510,0.052179,95857.0,95849.0,0.052183]
[1736845842910,0.05218,95856.0,95849.0,0.052183]
[1736845843315,0.05218,95856.0,95846.0,1.50056]
[1736845843316,0.05218,95856.0,95854.0,0.001]
[1736845843914,0.05218,95856.0,95849.0,0.001]
[1736845844112,0.05218,95856.0,95851.0,0.052182]
[1736845844618,0.06046528,95855.0,95851.0,0.052182]
[1736845845224,0.06046528,95855.0,95852.0,0.052181]
[1736845845814,0.06046528,95855.0,95854.0,0.05218]
[1736845846122,0.001,95855.0,95854.0,0.05318]
[1736845846620,0.007,95855.0,95854.0,0.05218]
[1736845847238,0.007,95855.0,95854.0,0.05318]
[1736845853217,0.06746423,95855.0,95854.0,0.05318]
[1736845853429,0.06746423,95855.0,95854.0,0.05418]
[1736845854226,0.001,95855.0,95854.0,0.05318]
[1736845854420,0.007,95855.0,95854.0,0.05318]
[1736845855529,0.007,95855.0,95854.0,0.05218]
[1736845856319,0.007,95855.0,95854.0,0.06184359]
[1736845857724,0.007,95855.0,95854.0,0.05218]
[1736845858926,0.06746318,95855.0,95854.0,0.05218]
[1736845859317,0.06746318,95855.0,95853.0,0.3608]
[1736845860431,0.05218,95854.0,95853.0,0.3608]
[1736845860631,0.05219,95837.0,95833.0,0.00156494]
[1736845860834,0.3608,95845.0,95835.0,0.3608]
[1736845861022,0.1201,95854.0,95835.0,0.4655133]
[1736845861223,0.1201,95854.0,95844.0,0.3608]
[1736845861423,0.0060876,95855.0,95847.0,0.052184]
[1736845861627,0.052184,95848.0,95845.0,0.001]
[1736845861820,0.1178,95847.0,95845.0,0.001]
[1736845862023,0.1178,95847.0,95844.0,0.3608]
[1736845862933,0.169985,95847.0,95844.0,0.3608]
[1736845863125,0.169985,95847.0,95844.0,0.412986]
[1736845863831,0.171985,95847.0,95844.0,0.412986]
[1736845864030,0.1198,95847.0,95835.0,0.3175052]
[1736845864333,0.1198,95847.0,95846.0,0.052185]
[1736845864929,0.002,95847.0,95846.0,0.052185]
[1736845865135,0.002,95847.0,95846.0,0.053185]
[1736845865329,0.002,95847.0,95846.0,0.413985]
[1736845865722,0.001,95847.0,95846.0,1.913985]
[1736845866129,0.001,95847.0,95846.0,0.413985]
[1736845866327,8.76e-05,95855.0,95854.0,0.05218]
[1736845866729,0.3608876,95855.0,95854.0,0.05218]
[1736845867031,0.3608876,95855.0,95834.0,0.11]
[1736845867228,0.3608876,95855.0,95843.0,0.18556346]
[1736845867229,0.3608,95846.0,95843.0,0.18556346]
[1736845867434,0.3608,95846.0,95844.0,0.052186]
[1736845868325,0.3608,95846.0,95843.0,0.18556346]
[1736845868535,0.3608,95846.0,95838.0,0.12351049]
[1736845868536,0.3608,95846.0,95845.0,0.052185]
[1736845869436,0.3618,95846.0,95845.0,0.052185]
[1736845869637,0.42326671,95846.0,95845.0,0.052185]
[1736845870829,0.42426671,95846.0,95845.0,0.052185]
[1736845871029,0.3638,95846.0,95845.0,0.052185]
[1736845882638,0.3638,95846.0,95845.0,1.552185]
[1736845883847,0.3638,95846.0,95845.0,0.052185]
[1736845890843,0.052188,95841.0,95837.0,0.052189]
[1736845891039,0.1112,95845.0,95837.0,0.052189]
[1736845891243,0.1112,95845.0,95844.0,0.052186]
[1736845892049,0.17166611,95845.0,95844.0,0.052186]
[1736845893046,0.06046611,95845.0,95844.0,0.052186]
[1736845893752,0.06146611,95845.0,95844.0,0.052186]
[1736845894256,0.001,95845.0,95844.0,0.052186]
[1736845894650,0.002,95845.0,95844.0,0.052186]
[1736845896442,0.002,95845.0,95844.0,0.06189968]
[1736845896848,0.002,95845.0,95844.0,0.052186]
[1736845897149,0.06246626,95845.0,95844.0,0.052186]
[1736845898550,0.002,95845.0,95844.0,0.052186]
[1736845901051,0.052188,95840.0,95839.0,0.18556346]
[1736845901855,0.052188,95840.0,95836.0,0.18556346]
[1736845902057,0.3608,95837.0,95836.0,0.23775346]
[1736845903156,0.3608,95837.0,95836.0,0.18556346]
[1736845903555,0.41299,95837.0,95836.0,0.18556346]
[1736845904661,0.41299,95837.0,95836.0,0.002]
[1736845905858,0.47346725,95837.0,95836.0,0.002]
[1736845906054,0.14676,95836.0,95824.0,0.00156514]
[1736845906257,0.3608,95825.0,95824.0,0.00156514]
[1736845907451,0.3608,95825.0,95824.0,0.00356514]
[1736845907656,0.3608,95825.0,95824.0,0.01056514]
[1736845908362,0.3608,95825.0,95824.0,0.06276214]
[1736845914160,0.3608,95825.0,95824.0,0.01056514]
[1736845914858,0.412996,95825.0,95824.0,0.01056514]
[1736845915566,0.3608,95825.0,95824.0,0.01056514]
[1736845916956,0.37304754,95825.0,95824.0,0.01056514]
[1736845917561,0.3608,95825.0,95824.0,0.01056514]
[1736845918169,0.20719486,95824.0,95823.0,0.052197]
[1736845919069,0.25939186,95824.0,95823.0,0.052197]
[1736845919762,0.26039186,95824.0,95823.0,0.061197]
[1736845920470,0.26039186,95824.0,95823.0,0.059197]
[1736845920674,0.26039186,95824.0,95823.0,0.061197]
[1736845920868,0.26039186,95824.0,95823.0,0.056197]
[1736845920869,0.25939186,95824.0,95823.0,0.056197]
[1736845922287,0.20719486,95824.0,95823.0,0.056197]
[1736845922575,0.20719486,95824.0,95823.0,0.057197]
[1736845923362,0.20719486,95824.0,95823.0,0.055197]
[1736845924477,0.20719486,95824.0,95823.0,0.053197]
[1736845924674,0.20819486,95824.0,95823.0,0.060197]
[1736845924873,0.20819486,95824.0,95823.0,0.062197]
[1736845926576,0.36140001,95825.0,95823.0,0.054197]
[1736845926873,0.001,95824.0,95823.0,0.059197]
[1736845927179,0.001,95824.0,95815.0,0.30136346]
[1736845927180,0.001,95824.0,95815.0,0.18556346]
[1736845927381,0.001,95824.0,95796.0,0.37440826]
[1736845927579,0.001,95824.0,81833.0,0.015]
[1736845927580,0.20928554,95783.0,95759.0,0.37952845]
[1736845927780,0.3608,95770.0,95760.0,1.5]
[1736845927969,0.3608,95761.0,95760.0,1.5]
[1736845930774,0.3608,95761.0,95760.0,1.502]
[1736845930775,0.3618,95761.0,95760.0,1.502]
[1736845931179,0.3618,95761.0,95760.0,0.003]
[1736845932282,0.3618,95761.0,95760.0,1.503]
[1736845932674,0.05221,95801.0,95780.0,0.052221]
[1736845932878,0.052212,95797.0,95791.0,0.3608]
[1736845933077,0.10464277,95800.0,95791.0,0.3608]
[1736845933282,0.10464277,95800.0,95799.0,0.3608]
[1736845933878,0.10464277,95800.0,95799.0,1.8608]
[1736845934684,0.052208,95803.0,95799.0,1.8608]
[1736845934979,0.1118,95810.0,95808.0,0.052205]
[1736845935179,0.1118,95822.0,95809.0,0.3608]
[1736845935391,0.052196,95826.0,95821.0,0.3608]
[1736845936096,0.052196,95826.0,95824.0,0.052197]
[1736845936280,0.1118,95829.0,95821.0,0.3608]
[1736845936681,0.1118,95829.0,95828.0,1.5]
[1736845938180,0.1128,95829.0,95828.0,1.5]
[1736845938889,0.1168,95829.0,95828.0,1.5]
[1736845939077,0.168994,95829.0,95827.0,0.052195]
[1736845939486,0.166994,95829.0,95827.0,0.052195]
[1736845940087,0.1148,95829.0,95809.0,0.3608]
[1736845940288,0.0522,95819.0,95817.0,0.0522]
[1736845941390,0.0522,95819.0,95818.0,1.5]
[1736845942291,0.57264996,95819.0,95817.0,0.0552]
[1736845942686,0.57264996,95819.0,95818.0,0.002]
[1736845942886,0.14941974,95819.0,95809.0,0.3608]
[1736845943189,0.0522,95818.0,95817.0,0.0522]
[1736845943792,0.0522,95818.0,95817.0,1.5542]
[1736845944887,0.37510306,95818.0,95817.0,1.5552]
[1736845945992,0.37510306,95818.0,95817.0,1.5532]
[1736845946594,0.37510306,95818.0,95817.0,1.5522]
[1736845946797,0.37510306,95818.0,95817.0,1.5]
[1736845947983,0.38772385,95818.0,95817.0,1.5]
[1736845948398,0.38872385,95818.0,95817.0,1.5]
[1736845948584,0.38972385,95818.0,95817.0,1.5]
[1736845949085,0.38872385,95818.0,95817.0,1.5]
[1736845949291,0.39572385,95818.0,95817.0,1.501]
[1736845949493,0.052186,95844.0,95835.0,0.052191]
[1736845949694,0.10464277,95860.0,95843.0,0.3608]
[1736845950088,0.1114,95868.0,95843.0,0.3608]
[1736845950089,0.05374984,95847.0,95846.0,0.052185]
[1736845951694,0.05774984,95847.0,95846.0,0.052185]
[1736845952096,0.06574984,95847.0,95846.0,0.053185]
[1736845955995,0.06574984,95847.0,95846.0,0.001]
[1736845956792,0.064184,95847.0,95846.0,0.001]
[1736845958494,0.052186,95844.0,95843.0,0.04847797]
[1736845959095,0.052186,95844.0,95836.0,0.3608]
[1736845959296,0.05219,95837.0,95836.0,0.3608]
[1736845960305,0.05219,95837.0,95836.0,0.25428]
[1736845960894,0.05419,95837.0,95836.0,0.25428]
[1736845961101,0.54553115,95837.0,95836.0,0.25428]
[1736845961397,0.54553115,95837.0,95836.0,0.30647]
[1736845962003,0.55053115,95837.0,95836.0,0.30647]
[1736845962202,0.17096631,95837.0,95836.0,0.30647]
[1736845962998,0.17096631,95837.0,95836.0,0.05219]
[1736845963203,0.052193,95832.0,95831.0,0.052193]
[1736845964497,0.053193,95832.0,95831.0,0.052193]
[1736845965004,0.16796931,95832.0,95831.0,0.052193]
[1736845965899,0.056193,95832.0,95831.0,0.052193]
[1736845966807,0.052194,95829.0,95827.0,0.052195]
[1736845967106,0.052199,95819.0,95818.0,0.1644]
[1736845967310,0.052199,95819.0,95818.0,0.1122]
[1736845968300,0.052199,95819.0,95806.0,0.4758]
[1736845968505,0.052203,95813.0,95806.0,0.4758]
[1736845968704,0.052203,95813.0,95807.0,0.1101]
[1736845970601,0.413003,95813.0,95807.0,0.1101]
[1736845970804,0.413003,95813.0,95812.0,0.00256552]
[1736845971611,0.414003,95813.0,95812.0,0.00256552]
[1736845972111,0.414003,95813.0,95812.0,0.00156552]
[1736845972813,0.414003,95813.0,95812.0,0.00256552]
[1736845973312,0.413003,95813.0,95812.0,0.00256552]
[1736845974313,0.413003,95813.0,95794.0,0.1133]
[1736845974314,0.42344461,95813.0,95794.0,0.1133]
[1736845974508,0.052212,95796.0,95794.0,0.1133]
[1736845976009,0.052212,95796.0,95795.0,0.3648]
[1736845976810,0.052212,95796.0,95795.0,0.3658]
[1736845978308,0.052212,95796.0,95795.0,0.005]
[1736845979014,0.3608,95853.0,95804.0,0.052207]
[1736845979219,0.052188,95840.0,95832.0,0.412992]
[1736845979520,0.10464277,95850.0,95832.0,0.3608]
[1736845979710,0.052189,95838.0,95832.0,0.3608]
[1736845979908,0.1133,95849.0,95832.0,0.3608]
[1736845980111,0.052186,95844.0,95832.0,0.3608]
[1736845980815,0.052186,95844.0,95832.0,0.412992]
[1736845981319,0.007,95833.0,95832.0,0.412992]
[1736845981722,0.002,95833.0,95832.0,0.412992]
[1736845981912,0.006,95833.0,95832.0,0.412992]
[1736845985325,0.052179,95856.0,95838.0,0.052189]
[1736845986020,0.05218,95855.0,95838.0,0.052189]
[1736845986918,0.00256565,95839.0,95838.0,0.052189]
[1736845987423,0.00156565,95839.0,95838.0,0.052189]
[1736845987614,0.00256565,95839.0,95838.0,0.052189]
[1736845987821,0.00356565,95839.0,95838.0,0.052189]
[1736845988317,0.00256565,95839.0,95838.0,0.052189]
[1736845988621,0.00356565,95839.0,95838.0,0.052189]
[1736845990727,0.002,95839.0,95838.0,0.052189]
[1736845990927,0.2261,95864.0,95840.0,0.104376]
[1736845991133,0.2261,95864.0,95861.0,0.3608]
[1736845991730,0.10101204,95863.0,95861.0,0.3608]
[1736845992232,0.10101204,95863.0,95861.0,0.412977]
[1736845992432,0.10101204,95863.0,95862.0,0.052176]
[1736845992832,0.28876332,95864.0,95863.0,0.052176]
[1736845993135,0.03876332,95864.0,95861.0,0.189016]
[1736845993335,0.001,95863.0,95862.0,0.052176]
[1736845993732,0.10195616,95863.0,95862.0,0.052176]
[1736845994837,0.10195616,95863.0,95862.0,0.053176]
[1736845995241,0.10195616,95863.0,95861.0,0.189016]
[1736845995242,0.00943534,95872.0,95867.0,0.052173]
[1736845995535,0.05217,95873.0,95867.0,0.052173]
[1736845996135,0.100907,95862.0,95861.0,0.189016]
[1736845996438,0.100907,95862.0,95861.0,0.03741103]
[1736845996936,0.20055824,95862.0,95861.0,0.03741103]
[1736845997336,0.20055824,95862.0,95861.0,0.08958803]
[1736845997529,0.20055824,95862.0,95861.0,0.09158803]
[1736845998038,0.20055824,95862.0,95861.0,0.08958803]
[1736845998239,0.20055824,95862.0,95861.0,0.09158803]
[1736845998941,0.09965124,95862.0,95861.0,0.09258803]
[1736846000035,0.05217,95873.0,95866.0,0.052174]
[1736846000036,0.21077439,95872.0,95866.0,0.052174]
[1736846000234,0.21077439,95872.0,95861.0,0.04041103]
[1736846000431,0.21077439,95872.0,95867.0,0.052173]
[1736846000634,0.26294539,95872.0,95867.0,0.052173]
[1736846001243,0.21077439,95871.0,95867.0,0.052173]
[1736846001642,0.052172,95870.0,95867.0,0.052173]
[1736846002535,0.15182324,95870.0,95867.0,0.052173]
[1736846002737,0.09965124,95870.0,95861.0,0.03841103]
[1736846003442,0.052172,95869.0,95866.0,0.052174]
[1736846004237,0.052172,95869.0,95861.0,0.03741103]
[1736846004238,0.052168,95876.0,95861.0,0.03741103]
[1736846004443,0.052168,95876.0,95870.0,0.3608]
[1736846005635,0.052168,95876.0,95874.0,0.052169]
[1736846006037,0.053168,95876.0,95874.0,0.052169]
[1736846006643,0.003,95876.0,95874.0,0.052169]
[1736846006845,0.002,95876.0,95874.0,0.052169]
[1736846007144,0.004,95876.0,95874.0,0.052169]
[1736846007843,0.16909019,95885.0,95870.0,0.3608]
[1736846008043,0.173313,95874.0,95871.0,0.1129]
[1736846008446,0.173313,95874.0,95872.0,0.11]
[1736846008641,0.173313,95874.0,95873.0,0.05217]
[1736846009735,0.174313,95874.0,95873.0,0.05217]
[1736846010839,0.27030415,95874.0,95873.0,0.05217]
[1736846011045,0.32247415,95874.0,95873.0,0.05217]
[1736846011341,0.09699115,95874.0,95870.0,0.3608]
[1736846011545,0.052171,95871.0,95870.0,0.3608]
[1736846013148,0.09599115,95871.0,95870.0,0.413972]
[1736846013348,0.09599115,95871.0,95870.0,0.412972]
[1736846014145,0.052167,95879.0,95870.0,0.412972]
[1736846014344,0.052169,95875.0,95870.0,0.412972]
[1736846014853,0.3608,95886.0,95870.0,0.412972]
[1736846015243,0.052169,95875.0,95870.0,0.412972]
[1736846015450,0.05217,95873.0,95870.0,0.412972]
[1736846015647,0.20754597,95874.0,95873.0,0.05217]
[1736846016246,0.24943476,95878.0,95870.0,0.3608]
[1736846016758,0.05217,95873.0,95870.0,0.3608]
[1736846017652,0.24943476,95878.0,95870.0,0.3608]
[1736846017852,0.24943476,95878.0,95874.0,0.052169]
[1736846018154,0.24943476,95878.0,95875.0,0.1091]
[1736846018355,0.09599115,95878.0,95877.0,0.052168]
[1736846018851,0.09599115,95878.0,95877.0,0.053168]
[1736846019048,0.09599115,95878.0,95877.0,0.052168]
[1736846019449,0.052166,95881.0,95877.0,0.052168]
[1736846019649,0.052166,95881.0,95878.0,0.052167]
[1736846019948,0.09599115,95885.0,95879.0,0.052167]
[1736846020150,0.052166,95880.0,95879.0,0.052167]
[1736846020451,0.052164,95884.0,95875.0,0.161269]
[1736846020651,0.052167,95879.0,95876.0,0.052168]
[1736846020847,0.052167,95879.0,95877.0,0.052168]
[1736846021558,0.14815815,95878.0,95877.0,0.052168]
[1736846021758,0.052171,95872.0,95871.0,0.052171]
[1736846022554,0.14816215,95872.0,95871.0,0.052171]
[1736846026570,0.14816215,95872.0,95870.0,0.3608]
[1736846026868,0.052171,95871.0,95870.0,0.3608]
[1736846027274,0.052176,95862.0,95861.0,0.03741103]
[1736846028868,0.14816715,95862.0,95861.0,0.03741103]
[1736846029263,0.14632597,95861.0,95858.0,0.052178]
[1736846029462,0.052178,95859.0,95858.0,0.052178]
[1736846030770,0.052178,95859.0,95858.0,0.056178]
[1736846031083,0.052178,95859.0,95858.0,0.005]
[1736846031469,0.14816915,95859.0,95858.0,0.005]
[1736846031872,0.09599115,95859.0,95858.0,0.005]
[1736846032465,0.09599115,95859.0,95858.0,0.002]
[1736846033178,0.09599115,95859.0,95858.0,0.003]
[1736846033967,0.20171483,95859.0,95858.0,0.003]
[1736846034162,0.20171483,95859.0,95858.0,0.005]
[1736846035671,0.20171483,95859.0,95858.0,0.054178]
[1736846035877,0.20171483,95859.0,95858.0,0.058178]
[1736846036071,0.20171483,95859.0,95858.0,0.057178]
[1736846036268,0.20171483,95859.0,95858.0,0.054178]
[1736846036469,0.20171483,95859.0,95858.0,0.164878]
[1736846036677,0.09599115,95859.0,95858.0,0.164878]
[1736846036878,0.09599115,95859.0,95858.0,0.160878]
[1736846037075,0.09599115,95859.0,95858.0,0.165878]
[1736846037975,0.09599115,95859.0,95858.0,0.005]
[1736846038170,0.15681477,95870.0,95858.0,0.005]
[1736846038370,0.052172,95869.0,95866.0,0.3608]
[1736846038781,0.052173,95868.0,95866.0,0.3608]
[1736846039275,0.24943476,95872.0,95858.0,0.005]
[1736846039575,0.052173,95868.0,95858.0,0.057178]
[1736846040088,0.20111113,95867.0,95860.0,0.052177]
[1736846040279,0.20111113,95867.0,95861.0,0.052176]
[1736846040671,0.20111113,95867.0,95861.0,0.412976]
[1736846041172,0.052173,95868.0,95861.0,0.412976]
[1736846043171,0.052173,95868.0,95862.0,0.052176]
[1736846043782,0.052173,95868.0,95861.0,0.3618]
[1736846043976,0.24943476,95872.0,95870.0,0.052171]
[1736846045079,0.08618789,95874.0,95872.0,0.05217]
[1736846046281,0.08618789,95873.0,95872.0,0.05217]
[1736846048180,0.12007,95872.0,95864.0,0.001]
[1736846048783,0.12007,95872.0,95871.0,0.412971]
[1736846048986,0.31179345,95891.0,95871.0,0.3608]
[1736846049184,0.10468394,95890.0,95879.0,0.412967]
[1736846049580,0.10468394,95890.0,95879.0,0.413967]
[1736846049778,4.117e-05,95890.0,95879.0,0.3618]
[1736846050075,4.117e-05,95890.0,95889.0,0.052161]
[1736846050491,0.05220217,95890.0,95889.0,0.001]
[1736846050685,0.052162,95889.0,95886.0,0.052163]
[1736846051188,0.052162,95887.0,95886.0,0.052163]
[1736846051388,4.117e-05,95890.0,95889.0,0.052161]
[1736846052488,4.117e-05,95890.0,95889.0,0.053161]
[1736846053082,4.117e-05,95890.0,95882.0,0.1096]
[1736846053083,0.086199,95889.0,95882.0,0.1096]
[1736846053488,0.086199,95889.0,95888.0,0.052162]
[1736846053889,0.052164,95884.0,95883.0,0.052164]
[1736846055789,0.053164,95884.0,95883.0,0.053164]
[1736846058187,0.053164,95884.0,95883.0,0.001]
[1736846059996,0.13702718,95884.0,95883.0,0.001]
[1736846060993,0.052166,95880.0,95879.0,0.3608]
[1736846062397,0.053166,95880.0,95879.0,0.3608]
[1736846062599,0.13702918,95880.0,95879.0,0.3608]
[1736846064597,0.053166,95880.0,95879.0,0.3608]
[1736846065501,0.052171,95871.0,95870.0,0.3608]
[1736846066599,0.052171,95871.0,95870.0,0.412972]
[1736846066997,0.054171,95871.0,95870.0,0.3608]
[1736846069799,0.002,95871.0,95870.0,0.412972]
[1736846070003,0.054171,95871.0,95870.0,0.412972]
[1736846070193,0.002,95871.0,95870.0,0.412972]
[1736846070394,0.002,95871.0,95870.0,1.912972]
[1736846070796,0.08601513,95871.0,95870.0,1.912972]
[1736846071202,0.08601513,95871.0,95870.0,1.92516491]
[1736846072893,0.08601513,95871.0,95870.0,1.92616491]
[1736846073898,0.08601513,95871.0,95870.0,0.42616491]
[1736846075602,4.117e-05,95890.0,95889.0,0.052161]
[1736846075904,4.117e-05,95890.0,95889.0,0.413961]
[1736846076308,0.5,95900.0,95899.0,0.052156]
[1736846076708,0.5,95900.0,95899.0,0.053156]
[1736846079898,0.5,95900.0,95899.0,0.054156]
[1736846082401,0.5,95900.0,95899.0,0.06629553]
[1736846086305,0.57522108,95900.0,95899.0,0.06629553]
[1736846087305,0.5,95900.0,95899.0,0.06629553]
[1736846088308,0.36136001,95910.0,95909.0,0.052151]
[1736846088510,0.3608,95910.0,95909.0,0.052151]
[1736846088713,0.3608,95910.0,95909.0,0.053151]
[1736846089305,0.43600688,95910.0,95909.0,0.053151]
[1736846089506,0.43600688,95910.0,95909.0,0.054151]
[1736846090611,0.07520688,95910.0,95909.0,0.054151]
[1736846091011,0.07520688,95910.0,95909.0,0.06622165]
[1736846091205,0.07520688,95910.0,95909.0,1.71012165]
[1736846091718,0.1105,95920.0,95917.0,0.052146]
[1736846091911,0.1105,95920.0,95918.0,0.052145]
[1736846092216,0.1343,95928.0,95918.0,0.001]
[1736846092617,0.1343,95928.0,95911.0,0.001]
[1736846092813,0.10464277,95920.0,95918.0,0.052146]
[1736846093012,0.052143,95923.0,95918.0,0.052146]
[1736846093215,0.052143,95923.0,95918.0,0.053146]
[1736846093412,0.052143,95923.0,95919.0,0.052145]
[1736846093607,0.052145,95920.0,95918.0,0.001]
[1736846094013,0.3608,95919.0,95911.0,0.001]
[1736846094209,0.10464277,95921.0,95911.0,0.001]
[1736846094413,0.052144,95922.0,95912.0,0.001]
[1736846094616,0.10464277,95922.0,95916.0,0.052147]
[1736846094809,0.052147,95917.0,95916.0,0.052146]
[1736846095012,0.15678577,95922.0,95911.0,0.001]
[1736846095205,0.15678577,95922.0,95920.0,0.052144]
[1736846095405,0.3608,95923.0,95912.0,0.001]
[1736846095610,0.3608,95923.0,95922.0,0.052143]
[1736846097119,0.3608,95923.0,95922.0,0.054143]
[1736846099620,0.1343,95928.0,95927.0,0.052141]
[1736846100715,0.18644,95928.0,95927.0,0.053141]
[1736846100912,0.54724,95928.0,95907.0,0.00156408]
[1736846101117,0.05215,95913.0,95912.0,0.052148]
[1736846101514,0.18405,95913.0,95912.0,0.052148]
[1736846102017,0.052151,95908.0,95907.0,0.05371508]
[1736846102322,0.052151,95908.0,95898.0,0.3608]
[1736846102517,0.1457,95907.0,95898.0,0.3608]
[1736846102710,0.052155,95902.0,95901.0,0.052155]
[1736846103115,0.1457,95907.0,95898.0,0.3608]
[1736846103327,0.052156,95900.0,95898.0,0.3618]
[1736846103818,0.052156,95900.0,95898.0,0.001]
[1736846103819,0.052156,95899.0,95898.0,0.001]
[1736846104022,0.052161,95890.0,95889.0,0.02163306]
[1736846104217,0.052164,95885.0,95879.0,1.5]
[1736846104415,0.052167,95879.0,95878.0,0.00156419]
[1736846104617,0.1333,95889.0,95880.0,0.001]
[1736846104820,0.1333,95889.0,95888.0,0.052162]
[1736846105017,0.001,95900.0,95899.0,0.052156]
[1736846105218,0.001,95900.0,95899.0,0.412956]
[1736846105519,0.001,95900.0,95899.0,1.913956]
[1736846106138,0.15678777,95920.0,95914.0,0.052147]
[1736846106423,0.10464277,95920.0,95914.0,0.052147]
[1736846106628,0.052147,95916.0,95915.0,0.001]
[1736846106928,0.052147,95917.0,95901.0,0.001]
[1736846107126,0.10464277,95911.0,95901.0,0.001]
[1736846107427,0.142,95916.0,95900.0,0.001]
[1736846107428,0.052153,95905.0,95900.0,0.001]
[1736846107626,0.052153,95906.0,95901.0,0.052154]
[1736846107822,0.1321,95910.0,95901.0,0.052154]
[1736846108217,0.052154,95903.0,95901.0,0.052154]
[1736846108421,0.052154,95903.0,95899.0,0.3608]
[1736846108422,0.1321,95910.0,95899.0,0.3608]
[1736846108728,0.052155,95900.0,95899.0,0.3608]